bitfinex/quotes_SOLUSD_20240825
["timestamp","ask_amount","ask_price","bid_price","bid_amount"]
[1724562353614,54.87282194,158.9,158.84,1.57574421]
[1724562353794,54.87282194,158.9,158.81,9.87282194]
[1724562354001,54.87282194,158.9,158.82,1.57579929]
[1724562354317,61.16602194,158.9,158.83,1.57579929]
[1724562354492,61.16602194,158.9,158.82,20.0]
[1724562354695,61.16602194,158.9,158.83,1.57579825]
[1724562354921,61.16602194,158.9,158.82,20.0]
[1724562355126,61.16602194,158.9,158.83,1.57579945]
[1724562355314,61.16602194,158.9,158.82,20.0]
[1724562355622,61.16602194,158.9,158.83,1.57579073]
[1724562355921,61.16602194,158.9,158.82,20.0]
[1724562356108,61.16602194,158.9,158.83,1.57579088]
[1724562356323,61.16602194,158.9,158.82,20.0]
[1724562362025,9.87282194,158.88,158.76,22.43606558]
[1724562362232,6.186,158.86,158.78,31.44876213]
[1724562362403,46.29518105,158.85,158.79,1.57594019]
[1724562363033,46.29518105,158.85,158.78,29.87282194]
[1724562363528,45.0,158.85,158.78,29.87282194]
[1724562367639,45.0,158.85,158.8,9.87282194]
[1724562375154,45.0,158.85,158.78,29.87282194]
[1724562377920,45.0,158.85,158.79,1.25852896]
[1724562378862,45.0,158.85,158.8,9.87282194]
[1724562379042,6.186,158.86,158.8,9.87282194]
[1724562379651,6.186,158.86,158.81,1.25924851]
[1724562380150,6.186,158.86,158.82,9.87282194]
[1724562380329,7.48118105,158.86,158.81,20.0]
[1724562380529,6.186,158.86,158.81,20.0]
[1724562382456,6.186,158.86,158.81,21.25917205]
[1724562388335,6.186,158.86,158.82,1.57580125]
[1724562389438,6.186,158.86,158.81,21.25917205]
[1724562392271,16.2423,158.87,158.82,9.87282194]
[1724562392573,16.2423,158.87,158.84,9.87282194]
[1724562396855,6.3008,158.9,158.84,9.87282194]
[1724562397054,6.3008,158.9,158.85,1.25881016]
[1724562397250,6.3008,158.9,158.85,21.25881016]
[1724562397460,6.3008,158.9,158.86,1.25883563]
[1724562397673,15.7074,158.91,158.88,9.87282194]
[1724562402570,6.3008,158.94,158.88,9.87282194]
[1724562407789,6.3008,158.94,158.89,1.25862669]
[1724562407954,6.3008,158.94,158.9,9.87282194]
[1724562409276,6.3008,158.94,158.89,9.87282194]
[1724562414075,15.7074,158.95,158.89,9.87282194]
[1724562414589,15.7074,158.95,158.9,1.25853169]
[1724562417693,22.1566,158.99,158.91,9.87282194]
[1724562417890,45.0,158.98,158.91,11.13123464]
[1724562426902,22.1566,158.99,158.93,9.87282194]
[1724562427200,15.8721,158.99,158.94,1.25817972]
[1724562427979,15.8721,158.99,158.93,9.87282194]
[1724562429098,46.29518105,158.98,158.91,9.87282194]
[1724562429402,46.29518105,158.98,158.92,20.0]
[1724562430180,45.0,158.98,158.92,20.51858468]
[1724562430513,45.0,158.98,158.92,20.0]
[1724562432198,45.0,158.98,158.92,9.87282194]
[1724562432507,45.0,158.98,158.93,20.0]
[1724562432878,46.29518105,158.98,158.93,20.0]
[1724562434288,46.29518105,158.98,158.88,39.49128776]
[1724562434289,46.29518105,158.98,158.92,9.87282194]
[1724562434483,46.29518105,158.98,158.93,20.0]
[1724562438319,45.0,158.98,158.93,20.0]
[1724562442111,15.8721,158.99,158.94,11.13071408]
[1724562442495,15.8721,158.99,158.94,9.87282194]
[1724562443091,12.7857,159.02,158.94,9.87282194]
[1724562443319,45.0,159.01,158.94,9.87282194]
[1724562444594,15.7144,159.03,158.96,9.87282194]
[1724562444893,15.7144,159.03,158.91,16.5634]
[1724562444894,1.29518105,159.02,158.97,20.0]
[1724562445117,1.29518105,159.02,158.97,29.87282194]
[1724562445423,1.29518105,159.02,158.97,9.87282194]
[1724562446122,46.29518105,159.02,158.97,9.87282194]
[1724562446447,1.29518105,159.01,158.97,9.87282194]
[1724562447726,45.0,159.02,158.97,9.87282194]
[1724562456713,46.29518105,159.02,158.97,9.87282194]
[1724562456907,45.0,159.02,158.95,9.87282194]
[1724562457226,45.0,159.02,158.96,20.0]
[1724562460133,45.0,159.02,158.97,1.57432283]
[1724562460431,45.0,159.02,158.96,20.0]
[1724562461516,45.0,159.02,158.97,9.87282194]
[1724562463738,15.7144,159.03,158.97,11.12982177]
[1724562464029,12.5358,159.06,158.97,11.12982177]
[1724562464236,45.0,159.05,158.97,11.12982177]
[1724562464819,45.0,159.05,158.99,9.87282194]
[1724562465537,1.29518105,159.04,158.97,9.87282194]
[1724562465839,1.29518105,159.04,158.97,14.2130214]
[1724562466218,1.29518105,159.04,158.97,4.34019946]
[1724562466426,1.29518105,159.04,158.97,9.87282194]
[1724562467008,6.2877,159.04,158.96,9.87282194]
[1724562467214,45.0,159.03,158.97,20.0]
[1724562472023,6.2874,159.05,158.97,20.0]
[1724562472024,45.0,159.04,158.97,20.0]
[1724562473614,45.0,159.04,158.98,9.87282194]
[1724562474128,12.5357,159.06,158.98,11.13067971]
[1724562474341,12.5357,159.06,158.98,9.87282194]
[1724562475846,45.0,159.05,158.98,9.87282194]
[1724562479750,1.29518105,159.04,158.98,9.87282194]
[1724562480743,1.29518105,159.04,158.97,20.0]
[1724562480944,45.0,159.05,158.96,9.87282194]
[1724562481119,45.0,159.05,158.97,20.0]
[1724562481628,45.0,159.05,158.97,20.41287863]
[1724562482443,6.2877,159.04,158.97,20.41287863]
[1724562482741,45.0,159.03,158.97,20.0]
[1724562485538,45.0,159.03,158.97,20.53472186]
[1724562487528,45.0,159.04,158.98,4.34148016]
[1724562489351,45.0,159.04,158.98,7.02230255]
[1724562489831,45.0,159.04,158.98,2.68082239]
[1724562490450,45.0,159.04,158.97,20.0]
[1724562490756,45.0,159.04,158.98,7.02217769]
[1724562490930,45.0,159.04,158.97,20.0]
[1724562491134,45.0,159.04,158.98,7.02217692]
[1724562491334,45.0,159.04,158.97,20.0]
[1724562491535,45.0,159.04,158.98,7.02229327]
[1724562491753,45.0,159.04,158.97,20.0]
[1724562491934,45.0,159.04,158.98,7.02287034]
[1724562492134,45.0,159.04,158.97,20.0]
[1724562492331,45.0,159.04,158.98,7.0223899]
[1724562492551,45.0,159.04,158.97,20.0]
[1724562492855,45.0,159.04,158.98,7.0223831]
[1724562493029,45.0,159.04,158.97,20.0]
[1724562493229,45.0,159.04,158.98,7.0225237]
[1724562493432,1.29518105,159.03,158.99,4.34200924]
[1724562493634,1.29518105,159.03,158.98,2.68118361]
[1724562493840,1.29518105,159.03,158.97,20.0]
[1724562494037,1.29518105,159.03,158.98,7.02446258]
[1724562494233,1.29518105,159.03,158.97,7.07787477]
[1724562494442,51.2877,159.04,158.98,7.02452685]
[1724562494629,51.2877,159.04,158.97,7.07787477]
[1724562494823,51.2877,159.04,158.98,7.02528869]
[1724562495130,51.2877,159.04,158.97,7.07787477]
[1724562495330,51.2877,159.04,158.98,7.02549595]
[1724562495636,51.2877,159.04,158.97,7.07787477]
[1724562495833,51.2877,159.04,158.98,7.02527135]
[1724562496056,51.2877,159.04,158.97,7.07787477]
[1724562496357,51.2877,159.04,158.98,7.02540981]
[1724562496535,1.29518105,159.03,158.97,7.07787477]
[1724562496735,1.29518105,159.03,158.98,2.68202824]
[1724562496935,1.29518105,159.03,158.97,7.07787477]
[1724562497153,1.29518105,159.03,158.98,2.68200255]
[1724562497453,1.29518105,159.03,158.97,7.07878491]
[1724562497641,1.29518105,159.03,158.96,20.0]
[1724562497843,1.29518105,159.03,158.98,2.68200162]
[1724562499832,1.29518105,159.03,158.97,7.07878247]
[1724562500033,1.29518105,159.03,158.98,2.68197404]
[1724562500233,1.29518105,159.03,158.97,7.07878247]
[1724562500438,1.29518105,159.03,158.98,2.68210264]
[1724562500657,1.29518105,159.03,158.97,7.07878247]
[1724562500870,1.29518105,159.03,158.98,2.68214049]
[1724562501042,1.29518105,159.03,158.97,7.07878247]
[1724562501342,1.29518105,159.03,158.98,2.68212061]
[1724562501547,1.29518105,159.03,158.97,7.07878247]
[1724562501841,1.29518105,159.03,158.98,2.68210974]
[1724562502042,1.29518105,159.03,158.97,7.07878247]
[1724562502243,1.29518105,159.03,158.98,2.68211816]
[1724562502450,1.29518105,159.03,158.97,7.07878247]
[1724562502635,1.29518105,159.03,158.98,2.68212006]
[1724562502849,1.29518105,159.03,158.97,7.07878247]
[1724562507382,1.29518105,159.03,158.97,7.08337062]
[1724562507856,1.29518105,159.03,158.96,20.0]
[1724562508059,1.29518105,159.03,158.97,7.08327748]
[1724562509160,51.2877,159.04,158.97,7.08327748]
[1724562509362,51.2877,159.04,158.97,8.34121252]
[1724562510673,51.2877,159.04,158.97,1.25793504]
[1724562511181,51.2877,159.04,158.97,8.3412224]
[1724562511385,45.0,159.04,158.97,8.3412224]
[1724562511682,45.0,159.04,158.97,11.13075698]
[1724562512576,45.0,159.04,158.98,7.08338325]
[1724562514087,45.0,159.05,158.98,7.08338325]
[1724562514386,45.0,159.05,158.97,11.13075698]
[1724562514586,51.2873,159.05,158.98,7.08394774]
[1724562514767,1.29518105,159.04,158.98,7.08394774]
[1724562515487,1.29518105,159.04,158.96,20.0]
[1724562517289,16.0424,159.03,158.96,20.0]
[1724562517467,6.2205,159.01,158.92,7.7837811]
[1724562517665,32.20562194,158.98,158.92,7.78710014]
[1724562517863,32.20562194,158.98,158.89,17.65992208]
[1724562517864,1.29518105,158.97,158.89,17.65992208]
[1724562518096,1.29518105,158.97,158.89,17.66412088]
[1724562518097,46.29518105,158.97,158.89,17.66412088]
[1724562518598,46.29518105,158.97,158.89,9.87282194]
[1724562519292,46.29518105,158.97,158.9,21.25836844]
[1724562519293,45.0,158.97,158.9,21.25836844]
[1724562520367,45.0,158.97,158.91,1.57482012]
[1724562520673,45.0,158.97,158.92,1.57482012]
[1724562520870,45.0,158.97,158.91,1.25836743]
[1724562521990,46.29518105,158.97,158.9,20.0]
[1724562522169,45.0,158.97,158.91,1.25835302]
[1724562524387,46.29518105,158.97,158.9,20.0]
[1724562524594,46.29518105,158.97,158.89,9.87282194]
[1724562524884,45.0,158.97,158.9,21.25835972]
[1724562534404,6.3787,158.96,158.9,21.25835972]
[1724562535207,1.29518105,158.95,158.9,20.0]
[1724562535394,1.29518105,158.95,158.88,20.0]
[1724562536278,7.67388105,158.96,158.88,20.0]
[1724562536511,7.67388105,158.96,158.87,9.87282194]
[1724562536702,7.67388105,158.96,158.88,20.0]
[1724562537607,1.29518105,158.95,158.88,20.0]
[1724562537787,1.29518105,158.95,158.87,9.87282194]
[1724562537986,7.67388105,158.96,158.88,20.0]
[1724562539885,1.29518105,158.95,158.88,9.87282194]
[1724562540085,6.3787,158.96,158.89,20.0]
[1724562540299,6.3787,158.96,158.9,1.25842979]
[1724562547233,6.3787,158.96,158.89,20.0]
[1724562548222,6.3787,158.96,158.9,1.25837038]
[1724562549410,6.3787,158.96,158.89,20.0]
[1724562549611,6.3787,158.96,158.9,1.25780292]
[1724562551504,6.3787,158.96,158.89,20.0]
[1724562551705,1.29518105,158.95,158.9,20.0]
[1724562551923,1.29518105,158.95,158.87,20.0]
[1724562552126,6.3787,158.96,158.87,20.0]
[1724562552516,1.29518105,158.95,158.87,20.0]
[1724562552817,15.6084,158.94,158.87,20.0]
[1724562556600,15.6084,158.94,158.88,5.61264182]
[1724562556826,15.6084,158.94,158.89,24.35737641]
[1724562557030,15.6084,158.94,158.9,5.61248382]
[1724562557235,15.6084,158.94,158.91,20.0]
[1724562557912,15.6084,158.94,158.9,1.25510741]
[1724562558135,15.6084,158.94,158.89,4.35745887]
[1724562558432,15.6084,158.94,158.9,5.61240829]
[1724562558644,15.6084,158.94,158.91,20.0]
[1724562559232,15.6084,158.94,158.9,1.25494942]
[1724562559411,15.6084,158.94,158.91,4.35711113]
[1724562559611,15.6084,158.94,158.9,24.35711113]
[1724562559832,15.6084,158.94,158.91,4.35711113]
[1724562560130,15.6084,158.94,158.9,24.35711113]
[1724562560313,15.6084,158.94,158.91,4.35711113]
[1724562560631,15.6084,158.94,158.91,4.35763024]
[1724562561210,15.6084,158.94,158.9,20.0]
[1724562561411,15.6084,158.94,158.91,4.35751742]
[1724562561735,15.6084,158.94,158.9,20.0]
[1724562561906,15.6084,158.94,158.91,4.35747292]
[1724562562107,15.6084,158.94,158.9,20.0]
[1724562562306,15.6084,158.94,158.91,4.35747139]
[1724562562618,15.6084,158.94,158.88,20.0]
[1724562562816,15.6084,158.94,158.89,5.61637892]
[1724562563020,15.6084,158.94,158.9,7.04905841]
[1724562563228,15.6084,158.94,158.91,27.04905841]
[1724562563431,15.6084,158.94,158.92,4.35781575]
[1724562563634,15.6084,158.94,158.91,20.0]
[1724562563834,15.6084,158.94,158.92,4.35773954]
[1724562564009,15.6084,158.94,158.9,20.0]
[1724562564212,15.6084,158.94,158.91,7.04902665]
[1724562564425,15.6084,158.94,158.92,4.35774148]
[1724562564628,15.6084,158.94,158.89,20.0]
[1724562564823,15.6084,158.94,158.9,7.04894501]
[1724562565028,15.6084,158.94,158.91,27.04875127]
[1724562565335,15.6084,158.94,158.92,7.04875127]
[1724562565643,15.6084,158.94,158.89,21.25854343]
[1724562565935,15.6084,158.94,158.9,7.04735661]
[1724562566133,15.6084,158.94,158.91,27.04735661]
[1724562566311,15.6084,158.94,158.92,7.04735661]
[1724562566512,15.6084,158.94,158.91,20.0]
[1724562566717,15.6084,158.94,158.92,7.04682138]
[1724562569441,15.6084,158.94,158.92,2.69039103]
[1724562569634,15.6084,158.94,158.91,20.0]
[1724562569937,15.6084,158.94,158.92,2.69033569]
[1724562570134,15.6084,158.94,158.88,21.2585538]
[1724562570432,15.6084,158.94,158.89,2.69029042]
[1724562570640,15.6084,158.94,158.9,2.69029042]
[1724562570811,15.6084,158.94,158.91,2.69029042]
[1724562571016,15.6084,158.94,158.88,21.2585538]
[1724562572336,15.6084,158.94,158.89,9.87282194]
[1724562572637,15.6084,158.94,158.9,1.25830726]
[1724562572809,15.6084,158.94,158.9,20.0]
[1724562574120,15.7122,158.98,158.93,9.87282194]
[1724562574317,15.7122,158.98,158.94,21.2580375]
[1724562575723,15.7122,158.98,158.94,28.35259716]
[1724562576445,6.6574,159.0,158.94,28.35259716]
[1724562576943,6.6574,159.0,158.94,27.09455966]
[1724562577870,6.6574,159.0,158.95,1.2578811]
[1724562578038,6.6574,159.0,158.96,1.25788084]
[1724562587868,6.6574,159.0,158.94,20.0]
[1724562588266,6.6574,159.0,158.95,20.0]
[1724562588966,6.6574,159.0,158.94,21.25806762]
[1724562589549,6.6574,159.0,158.94,1.25806762]
[1724562592962,6.6574,159.0,158.94,11.13088956]
[1724562593160,6.6574,159.0,158.95,20.0]
[1724562593355,6.6574,159.0,158.96,1.25791332]
[1724562597764,6.6574,159.0,158.95,20.0]
[1724562598880,15.2903,158.99,158.9,6.95408305]
[1724562599104,54.87282194,158.98,158.91,1.2575813]
[1724562600683,15.2903,158.99,158.91,1.2575813]
[1724562600886,15.2903,158.99,158.91,11.13040324]
[1724562601096,15.2903,158.99,158.92,20.0]
[1724562601264,15.2903,158.99,158.93,1.2581846]
[1724562612896,15.2903,158.99,158.92,20.0]
[1724562616385,1.29518105,158.98,158.92,20.0]
[1724562616587,1.29518105,158.98,158.89,9.87282194]
[1724562616588,46.29518105,158.98,158.89,9.87282194]
[1724562616782,45.0,158.98,158.9,21.2583042]
[1724562624495,15.2903,158.99,158.9,21.2583042]
[1724562626281,15.2903,158.99,158.91,9.87282194]
[1724562626479,15.2903,158.99,158.93,9.87282194]
[1724562626714,15.2903,158.99,158.94,21.25801085]
[1724562627891,15.2903,158.99,158.95,9.87282194]
[1724562628088,15.2903,158.99,158.96,21.25791365]
[1724562630717,15.2903,158.99,158.97,4.34643459]
[1724562631104,15.2903,158.99,158.96,21.25791365]
[1724562631407,15.2903,158.99,158.97,4.3463858]
[1724562632909,15.2903,158.99,158.96,21.25791365]
[1724562633298,6.6574,159.0,158.96,21.25791365]
[1724562633498,6.6574,159.0,158.97,4.34618883]
[1724562633813,6.6574,159.0,158.98,1.2577554]
[1724562640020,6.6574,159.0,158.96,20.0]
[1724562641217,6.6574,159.0,158.97,1.57431416]
[1724562641418,6.6574,159.0,158.98,1.57431416]
[1724562641597,6.6574,159.0,158.99,1.57431416]
[1724562642619,6.6574,159.0,158.96,20.0]
[1724562643001,6.6574,159.0,158.97,1.57432241]
[1724562643321,6.6574,159.0,158.98,1.57432241]
[1724562643502,6.6574,159.0,158.99,1.57432241]
[1724562646431,6.6574,159.0,158.99,1.57433204]
[1724562646801,6.6574,159.0,158.99,1.57433323]
[1724562649722,6.6574,159.0,158.96,20.0]
[1724562649917,6.6574,159.0,158.97,1.57445606]
[1724562650120,6.6574,159.0,158.98,1.57445606]
[1724562650324,6.6574,159.0,158.94,20.0]
[1724562650507,6.6574,159.0,158.95,8.61203739]
[1724562650696,6.6574,159.0,158.96,21.57443819]
[1724562650900,6.6574,159.0,158.97,1.57443819]
[1724562651226,6.6574,159.0,158.98,1.57443819]
[1724562651523,6.6574,159.0,158.95,8.29611498]
[1724562651821,6.6574,159.0,158.96,21.57444156]
[1724562651999,6.6574,159.0,158.97,1.57444156]
[1724562652198,6.6574,159.0,158.98,1.57444156]
[1724562652417,6.6574,159.0,158.95,7.03654313]
[1724562652620,6.6574,159.0,158.96,21.57440675]
[1724562652823,6.6574,159.0,158.97,1.57440675]
[1724562653012,6.6574,159.0,158.98,1.57440675]
[1724562653220,6.6574,159.0,158.99,1.57440675]
[1724562653620,6.6574,159.0,158.97,20.0]
[1724562654139,6.6574,159.0,158.98,1.57433237]
[1724562654341,6.6574,159.0,158.99,1.57433237]
[1724562657333,6.6574,159.0,158.95,20.0]
[1724562657534,6.6574,159.0,158.99,1.57435972]
[1724562657706,6.6574,159.0,158.96,7.03382883]
[1724562657903,6.6574,159.0,158.97,21.57435972]
[1724562658123,6.6574,159.0,158.97,20.0]
[1724562658628,6.6574,159.0,158.96,4.34858019]
[1724562660319,1.29518105,158.99,158.96,4.34858019]
[1724562660521,15.4907,158.98,158.96,4.34858019]
[1724562661835,15.4907,158.98,158.93,20.0]
[1724562662031,15.4907,158.98,158.93,21.25819503]
[1724562662650,15.4907,158.98,158.93,31.13101697]
[1724562671518,6.6574,159.0,158.93,31.13101697]
[1724562671712,6.6574,159.0,158.95,9.87282194]
[1724562671915,6.6574,159.0,158.96,21.2579224]
[1724562674343,6.6574,159.0,158.96,20.0]
[1724562685261,6.6574,159.0,158.96,21.25795158]
[1724562686457,6.6574,159.0,158.96,1.25795158]
[1724562686673,6.6574,159.0,158.96,21.25795158]
[1724562686860,6.6574,159.0,158.96,1.25795158]
[1724562687154,6.6574,159.0,158.96,20.0]
[1724562689171,15.8559,159.02,158.96,20.0]
[1724562690341,15.8559,159.02,158.97,0.63535195]
[1724562691569,15.8559,159.02,158.97,10.8864392]
[1724562691748,15.8559,159.02,158.98,20.0]
[1724562691954,15.8559,159.02,158.99,1.0899849]
[1724562693648,15.8559,159.02,158.98,20.0]
[1724562702184,15.8559,159.02,158.99,20.0]
[1724562702878,15.8559,159.02,158.95,20.0]
[1724562703068,15.8559,159.02,158.97,9.87282194]
[1724562703274,15.8559,159.02,158.98,20.0]
[1724562705499,6.445,159.04,158.98,20.0]
[1724562705500,6.445,159.04,158.99,9.87282194]
[1724562705663,16.2614,159.07,159.01,9.87282194]
[1724562705863,16.2614,159.07,159.02,1.25745523]
[1724562706065,16.2614,159.07,159.02,21.25745523]
[1724562709379,6.3732,159.09,159.02,21.25745523]
[1724562709571,6.3732,159.09,159.03,9.87282194]
[1724562709885,6.3732,159.09,159.04,21.2572336]
[1724562710086,6.3732,159.09,159.05,1.25723379]
[1724562711272,6.3732,159.09,159.04,20.0]
[1724562716189,6.3732,159.09,159.04,21.25735449]
[1724562716781,6.3732,159.09,159.05,1.25734564]
[1724562717088,16.2614,159.11,159.05,1.25734564]
[1724562717995,16.2614,159.11,159.05,2.8308741]
[1724562718899,16.2614,159.11,159.05,1.25734564]
[1724562720476,16.2614,159.11,159.04,20.0]
[1724562720793,22.5463,159.11,159.04,20.0]
[1724562720985,32.41912194,159.11,159.04,20.0]
[1724562721194,1.29518105,159.1,159.02,20.0]
[1724562721498,6.0872,159.08,159.02,20.0]
[1724562721691,6.0872,159.08,159.0,20.0]
[1724562722001,1.29518105,159.07,159.0,20.0]
[1724562722199,1.29518105,159.07,159.01,1.57384099]
[1724562725404,6.0872,159.08,159.01,1.25760529]
[1724562725698,22.24612194,159.08,159.01,2.8314717]
[1724562726506,22.24612194,159.08,159.01,1.25760529]
[1724562726882,22.24612194,159.08,159.0,20.0]
[1724562727181,22.24612194,159.08,159.01,1.57386675]
[1724562727382,22.24612194,159.08,159.01,1.25760779]
[1724562727905,15.1841,159.07,159.01,1.25760779]
[1724562728083,15.1841,159.07,159.01,1.25673458]
[1724562729608,16.47928105,159.07,159.0,20.0]
[1724562729781,16.47928105,159.07,159.01,1.57386675]
[1724562730103,15.1841,159.07,159.02,1.57386675]
[1724562730404,16.47928105,159.07,159.02,1.57386675]
[1724562730590,16.47928105,159.07,159.01,1.57386675]
[1724562730792,15.1841,159.07,159.02,1.57386675]
[1724562731300,16.47928105,159.07,159.01,1.57386675]
[1724562731480,16.47928105,159.07,159.02,1.57386675]
[1724562731813,16.47928105,159.07,159.01,1.57386675]
[1724562732107,16.47928105,159.07,159.02,1.57386675]
[1724562732310,16.47928105,159.07,159.0,20.0]
[1724562732514,15.1841,159.07,159.01,2.8306002]
[1724562732811,15.1841,159.07,159.02,1.5738666]
[1724562732985,15.1841,159.07,159.01,1.2567336]
[1724562733185,15.1841,159.07,159.02,1.57386675]
[1724562733385,16.47928105,159.07,159.0,20.0]
[1724562733600,16.47928105,159.07,159.01,1.57386691]
[1724562733906,16.47928105,159.07,159.02,1.57386691]
[1724562734086,16.47928105,159.07,159.0,20.0]
[1724562734281,16.47928105,159.07,159.01,1.5738666]
[1724562734481,16.47928105,159.07,159.02,1.5738666]
[1724562734686,16.47928105,159.07,159.0,20.0]
[1724562734893,16.47928105,159.07,159.01,1.57386691]
[1724562735097,16.47928105,159.07,159.02,1.57386691]
[1724562735296,16.47928105,159.07,159.0,20.0]
[1724562735608,16.47928105,159.07,159.01,1.57385791]
[1724562735798,15.1841,159.07,159.02,1.57385791]
[1724562736000,15.1841,159.07,159.01,1.2558642]
[1724562736186,15.1841,159.07,159.02,1.57385806]
[1724562736393,15.1841,159.07,159.01,1.2558642]
[1724562736598,15.1841,159.07,159.02,1.57385791]
[1724562736811,15.1841,159.07,159.01,1.2558642]
[1724562737002,15.1841,159.07,159.02,1.57387774]
[1724562737194,15.1841,159.07,159.01,1.2558642]
[1724562737505,15.1841,159.07,159.02,1.57387774]
[1724562737704,15.1841,159.07,158.99,23.93897571]
[1724562738010,15.1841,159.07,159.0,5.92070009]
[1724562738310,15.1841,159.07,159.01,22.82886444]
[1724562738684,15.1841,159.07,159.02,1.57386904]
[1724562738890,15.1841,159.07,159.03,1.57386904]
[1724562739091,15.1841,159.07,159.01,21.2576022]
[1724562739403,15.1841,159.07,159.02,1.57386675]
[1724562739623,15.1841,159.07,159.03,1.57386675]
[1724562739785,15.1841,159.07,159.01,1.2576022]
[1724562739980,15.1841,159.07,159.02,1.57385776]
[1724562740184,15.1841,159.07,159.03,1.57385776]
[1724562740411,15.1841,159.07,159.01,20.0]
[1724562740702,15.1841,159.07,159.02,1.57386645]
[1724562740909,15.1841,159.07,159.03,1.57386645]
[1724562741108,15.1841,159.07,159.0,1.25759077]
[1724562741314,15.1841,159.07,159.01,1.57386636]
[1724562741499,15.1841,159.07,159.02,1.57386636]
[1724562741704,15.1841,159.07,159.03,1.57386636]
[1724562742007,15.1841,159.07,159.01,21.25759375]
[1724562742202,15.1841,159.07,159.02,1.57385806]
[1724562742529,15.1841,159.07,159.03,1.57385806]
[1724562742692,15.1841,159.07,159.01,21.25759375]
[1724562742893,15.1841,159.07,159.02,1.57386675]
[1724562743192,15.1841,159.07,159.03,1.57386675]
[1724562743382,15.1841,159.07,159.01,1.25759375]
[1724562743585,15.1841,159.07,159.02,1.57386645]
[1724562743804,15.1841,159.07,159.03,1.57386645]
[1724562744003,15.1841,159.07,159.01,21.25759375]
[1724562744206,15.1841,159.07,159.02,1.57386671]
[1724562744408,15.1841,159.07,159.03,1.57386671]
[1724562744585,15.1841,159.07,159.01,21.25759375]
[1724562745124,15.1841,159.07,159.02,1.57386671]
[1724562745616,15.1841,159.07,159.03,1.57386671]
[1724562745790,15.1841,159.07,159.01,21.25744625]
[1724562746109,15.1841,159.07,159.02,1.5738578]
[1724562746314,15.1841,159.07,159.03,1.5738578]
[1724562746515,15.1841,159.07,159.04,1.5738578]
[1724562746807,15.1841,159.07,159.01,21.25744625]
[1724562747115,15.1841,159.07,159.02,1.57385691]
[1724562747301,15.1841,159.07,159.03,1.57385691]
[1724562747503,15.1841,159.07,159.04,1.57385691]
[1724562747690,15.1841,159.07,159.01,21.25744625]
[1724562747886,15.1841,159.07,159.02,1.5738374]
[1724562748117,15.1841,159.07,159.01,21.25744625]
[1724562748302,15.1841,159.07,159.03,1.57383706]
[1724562748699,15.1841,159.07,159.04,1.57383706]
[1724562748996,15.1841,159.07,159.01,21.25744625]
[1724562749215,15.1841,159.07,159.02,1.57382832]
[1724562749420,15.1841,159.07,159.03,1.57382832]
[1724562749612,15.1841,159.07,159.04,1.57382832]
[1724562749921,15.1841,159.07,159.01,21.25744625]
[1724562750218,15.1841,159.07,159.02,1.57383676]
[1724562750517,15.1841,159.07,159.03,1.57383676]
[1724562750709,15.1841,159.07,159.04,1.57383676]
[1724562750910,15.1841,159.07,159.01,21.25744625]
[1724562751113,15.1841,159.07,159.02,1.57383685]
[1724562751313,15.1841,159.07,159.03,1.57383685]
[1724562751522,15.1841,159.07,159.04,1.57383685]
[1724562751724,15.1841,159.07,159.05,1.57383685]
[1724562751905,15.1841,159.07,159.01,21.25744625]
[1724562752109,15.1841,159.07,159.02,1.5738373]
[1724562752314,15.1841,159.07,159.03,2.83112543]
[1724562752499,15.1841,159.07,159.04,1.5738373]
[1724562752701,15.1841,159.07,159.05,1.5738373]
[1724562752913,15.1841,159.07,159.03,1.25728813]
[1724562753119,15.1841,159.07,159.04,1.57383672]
[1724562753325,15.1841,159.07,159.05,1.57383672]
[1724562753618,16.15782194,159.11,159.02,9.87282194]
[1724562753619,16.349,159.11,159.02,9.87282194]
[1724562753929,1.29518105,159.1,159.03,21.57369748]
[1724562754102,1.29518105,159.1,159.04,1.57369748]
[1724562754420,1.29518105,159.1,159.05,1.57369748]
[1724562754629,1.29518105,159.1,159.06,1.57371364]
[1724562754922,1.29518105,159.1,159.0,9.87282194]